lending/lending_fUSD_20260102
["ID","MTS","AMOUNT","RATE_DAILY","PERIOD"]
[400337346,1767388245688,-25225.28909148,0.00042985,7]
[400337347,1767388245703,-454.54933519,0.00042985,7]
[400337348,1767388245714,-744.66170041,0.00042985,7]
[400337349,1767388710488,250.0,0.00017,2]
[400337350,1767388711587,300.0,0.00019,2]
[400337351,1767388719469,-350.0,0.00021,2]
[400337352,1767388719494,-264.08777757,0.00025399,10]
[400337353,1767388861698,500.0,0.00043006,120]
[400337354,1767388929703,-35.91222243,0.00025399,10]
[400337355,1767388929727,-151.0,0.00026425,2]
[400337356,1767388929750,-92.61955647,0.00026427,2]
[400337357,1767388932610,-58.38044353,0.00026427,2]
[400337358,1767388932633,-107.20781021,0.00026443,2]
[400337359,1767388935269,-43.79218979,0.00026443,2]
[400337360,1767388935293,-141.15774202,0.00026448,2]
[400337361,1767388960797,-151.0,0.00026457,2]
[400337362,1767388960821,-130.02478493,0.00026488,2]
[400337363,1767389004757,-151.0,0.00026525,2]
[400337364,1767389004779,-151.0,0.0002655,2]
[400337365,1767389004800,-3.09944886,0.00026552,2]
[400337366,1767389108650,9450.01,0.00018,2]
[400337367,1767389108678,10000.01,0.00018,2]
[400337368,1767389108709,19330.61676911,0.00018,2]
[400337369,1767389109442,-154.09944903,0.00018,2]
[400337370,1767389113881,-432.02478493,0.00018,2]
[400337371,1767389115987,-184.94993181,0.00018,2]
[400337372,1767389117987,-199.82736668,0.00018,2]
[400337373,1767389122546,-1097.0883678,0.00018,2]
[400337374,1767389122657,-10000.01,0.00018,2]
[400337375,1767389122797,-10000.01,0.00018,2]
[400337376,1767389122928,-10000.01,0.00018,2]
[400337377,1767389123587,-209.38044353,0.00018,2]
[400337378,1767389124960,-10000.01,0.00018,2]
[400337379,1767389125088,-10000.01,0.00018,2]
[400337380,1767389125258,-10000.01,0.00018,2]
[400337381,1767389125370,-10000.01,0.00018,2]
[400337382,1767389125490,-10000.01,0.00018,2]
[400337383,1767389125705,707.43554368,0.000108,2]
[400337384,1767389125729,318.3916229,0.000108,2]
[400337385,1767389127454,-307.28633324,0.00018,2]
[400337386,1767389128088,-10000.01,0.00018,2]
[400337387,1767389128237,-10000.01,0.00018,2]
[400337388,1767389128397,-10000.01,0.00018,2]
[400337389,1767389130099,-243.41131546,0.00018,2]
[400337390,1767389133600,-270.67646211,0.00018,2]
[400337391,1767389135718,-335.91222243,0.00018,2]
[400337392,1767389138920,-219.15242765,0.00018,2]
[400337393,1767389141620,-244.89063938,0.00018,2]
[400337394,1767389143175,-152.86532469,0.00018,2]
[400337395,1767389146973,-177.52834799,0.00018,2]
[400337396,1767389151454,-187.31206433,0.00018,2]
[400337397,1767389153969,10000.01,0.0001399,2]
[400337398,1767389153992,10000.01,0.0001399,2]
[400337399,1767389154016,10000.01,0.0001399,2]
[400337400,1767389154039,10000.01,0.0001399,2]
[400337401,1767389154062,10000.01,0.0001399,2]
[400337402,1767389154086,10000.01,0.0001399,2]
[400337403,1767389154110,10000.01,0.0001399,2]
[400337404,1767389154135,10000.01,0.0001399,2]
[400337405,1767389154157,10000.01,0.0001399,2]
[400337406,1767389154181,10000.01,0.0001399,2]
[400337407,1767389154204,4922.45392078,0.0001399,2]
[400337408,1767389154226,5240.84554368,0.0001399,2]
[400337409,1767389154248,1702.37839817,0.0001399,2]
[400337410,1767389154276,-313.00334933,0.00018,2]
[400337412,1767389159312,-232.85925685,0.00018,2]
[400337413,1767389160873,-182.61842055,0.00018,2]
[400337414,1767389161294,500.0,0.00043006,120]
[400337415,1767389163375,-300.0,0.00017999,2]
[400337416,1767389164973,-243.7905508,0.00018,2]
[400337417,1767389165588,1000.0,0.00017521,2]
[400337418,1767389165651,500.0,0.00016973,2]
[400337419,1767389166462,-227.1731616,0.00018,2]
[400337420,1767389169206,-500.0,0.00018,2]
[400337421,1767389170746,-392.0,0.00018,2]
[400337422,1767389174926,-300.0,0.00017999,2]
[400337423,1767389176655,-166.66,0.00018,2]
[400337424,1767389179749,-286.34,0.00018,2]
[400337425,1767389183824,-316.82403425,0.00018,2]
[400337426,1767389186264,2043.69939455,0.00015,2]
[400337427,1767389186616,-279.91339447,0.00018,2]
[400337428,1767389190101,-308.63635863,0.00018,2]
[400337429,1767389193479,-500.0,0.00017999,2]
[400337430,1767389194522,346.3197033,0.000179,2]
[400337432,1767389196103,-101.30413933,0.00017999,2]
[400337433,1767389196128,-103.13126765,0.00017999,2]
[400337434,1767389198079,-98.35835247,0.00017999,2]
[400337435,1767389198109,-104.01543488,0.00017999,2]
[400337436,1767389199689,-289.37263991,0.00017999,2]
[400337437,1767389202880,-106.61192521,0.00017999,2]
[400337438,1767389202904,-236.34093269,0.00017999,2]
[400337439,1767389205399,-182.95573177,0.00017999,2]
[400337440,1767389205425,-3.39667691,0.00017999,2]
[400337441,1767389208841,854.85371955,0.000179,2]
[400337442,1767389210359,-303.487613,0.00017999,2]
[400337443,1767389210389,-160.75664629,0.00017999,2]
[400337444,1767389213143,-302.53539732,0.00017999,2]
[400337445,1767389214410,9145.15628045,0.000162,5]
[400337446,1767389214439,10000.01,0.000162,5]
[400337447,1767389214469,10000.01,0.000162,5]
[400337448,1767389214495,3538.46714551,0.000162,5]
[400337449,1767389214519,5240.84554368,0.000162,5]
[400337450,1767389214544,5240.84554368,0.000162,5]
[400337451,1767389214573,5240.84554368,0.000162,5]
[400337452,1767389214598,5240.84554368,0.000162,5]
[400337453,1767389214622,5240.84554368,0.000162,5]
[400337454,1767389214647,5240.84554368,0.000162,5]
[400337455,1767389214681,311606.14331196,0.000162,5]
[400337456,1767389221196,300.0,0.00017998,2]
[400337457,1767389222084,550.0,0.00017998,2]
[400337458,1767389222123,1517.64,0.000153,2]
[400337459,1767389229739,-36.70795639,0.00017999,2]
[400337460,1767389229763,-161.31534797,0.00017999,2]
[400337461,1767389232637,-165.49172382,0.00017999,2]
[400337462,1767389235493,-173.19292821,0.00017999,2]
[400337463,1767389235523,-3.83334554,0.00017999,2]
[400337464,1767389238135,-171.52941078,0.00017999,2]
[400337465,1767389239737,-220.76140148,0.00017999,2]
[400337466,1767389242472,-103.8758422,0.00017999,2]
[400337467,1767389242498,-326.26227826,0.00017999,2]
[400337468,1767389246166,279.77082708,0.000179,2]
[400337469,1767389247235,-173.73772174,0.00017999,2]
[400337470,1767389247260,-98.90599469,0.00017999,2]
[400337471,1767389250480,-239.92526043,0.00017999,2]
[400337472,1767389253195,-161.16874488,0.00017999,2]
[400337473,1767389253228,-93.83125512,0.00017999,2]
[400337474,1767389255407,-236.01980397,0.00017999,2]
[400337475,1767389258077,-170.14894091,0.00017999,2]
[400337476,1767389258110,-48.54586037,0.00017999,2]
[400337477,1767389261786,-255.0,0.00017999,2]
[400337478,1767389264722,-196.45413963,0.00017999,2]
[400337479,1767389264752,-129.1178514,0.00017999,2]
[400337480,1767389266881,-266.50708799,0.00017999,2]
[400337481,1767389271212,-104.37506061,0.00017999,2]
[400337482,1767389271237,-205.27058711,0.00017999,2]
[400337483,1767389274036,-292.56133151,0.00017999,2]
[400337484,1767389276687,-2.16808138,0.00017999,2]
[400337485,1767389276717,-172.47968484,0.00017999,2]
[400337486,1767389279519,-151.03,0.00017999,2]
[400337487,1767389281344,300.0,0.00017998,2]
[400337488,1767389285896,-159.31640209,0.00017999,2]
[400337489,1767389286861,7052.59917292,0.0001439,2]
[400337490,1767389286885,3239.66486424,0.0001439,2]
[400337491,1767389287969,-17.17391307,0.00017999,2]
[400337492,1767389287994,-190.12766322,0.00017999,2]
[400337493,1767389290126,-175.92842549,0.00017999,2]
[400337494,1767389291680,-133.94391129,0.00017999,2]
[400337495,1767389291712,-40.7817858,0.00017999,2]
[400337496,1767389294368,-173.10566553,0.00017999,2]
[400337497,1767389300034,5941.81705286,0.00015,2]
[400337499,1767389301820,2496.97293098,0.00043006,120]
[400337500,1767389309064,153.595918,0.00043006,30]
[400337501,1767389311326,267.7104059,0.000107,2]
[400337502,1767389311747,506.61682406,0.000154,2]
[400337504,1767389313765,44.20085294,0.00014999,2]
[400337505,1767389313790,4970.71914706,0.00014999,2]
[400337506,1767389315303,2045.05502519,0.00015807,2]
[400337507,1767389318838,2984.23582775,0.00015,2]
[400337508,1767389318862,10000.01,0.00015,2]
[400337509,1767389318887,9958.13385841,0.00015,2]
[400337512,1767389335140,-159.77664951,0.00017999,2]
[400337513,1767389338027,-126.33589916,0.00017999,2]
[400337514,1767389338051,-84.8702593,0.00017999,2]
[400337515,1767389341231,41.87614159,0.00017998,2]
[400337516,1767389341254,258.12385841,0.00017998,2]
[400337517,1767389342132,-158.15535175,0.00017999,2]
[400337518,1767389343642,-322.47666049,0.00017999,2]
[400337519,1767389345134,-10.40022591,0.00017999,2]
[400337520,1767389345159,-500.0,0.00017999,2]
[400337521,1767389345182,-500.0,0.00017999,2]
[400337522,1767389345210,-500.0,0.00017999,2]
[400337523,1767389345232,-113.76550408,0.00017999,2]
[400337524,1767389345454,-153.72,0.00017999,2]
[400337525,1767389345778,4755.4969418,0.00017999,2]
[400337526,1767389345881,4986.38919979,0.000179,2]
[400337527,1767389345905,4462.80963354,0.000179,2]
[400337528,1767389346980,5537.20036646,0.000179,2]
[400337529,1767389347004,10000.01,0.000179,2]
[400337530,1767389348099,-3221.96496157,0.000179,2]
[400337531,1767389349661,-176.88943954,0.00017999,2]
[400337532,1767389351064,300.0,0.00017999,2]
[400337533,1767389351687,-55.62505638,0.00017999,2]
[400337534,1767389351715,-145.65125352,0.00017999,2]
[400337535,1767389355698,-196.34804293,0.00017999,2]
[400337536,1767389358992,-137.90892706,0.00017999,2]
[400337537,1767389359022,-295.1124132,0.00017999,2]
[400337538,1767389365702,-193.04576063,0.00017999,2]
[400337539,1767389367849,-11.84182617,0.00017999,2]
[400337540,1767389367877,-179.07657441,0.00017999,2]
[400337541,1767389371705,-288.79551888,0.00017999,2]
[400337542,1767389382352,177.27142474,0.00017899,2]
[400337543,1767389386191,278.4,0.00032877,120]
[400337544,1767389399993,154.93216666,0.000179,2]
[400337545,1767389401123,300.0,0.00017998,2]
[400337546,1767389401571,1200.0,0.00017998,2]
[400337547,1767389402118,550.0,0.00017998,2]
[400337548,1767389419592,235.84568341,0.0001799,2]
[400337549,1767389419860,235.84568341,0.0001799,2]
[400337550,1767389429083,500.0,0.00030599,120]
[400337551,1767389430545,402.18511864,0.00017973,2]
[400337552,1767389430570,3292.45107996,0.00017973,2]
[400337559,1767389431550,-32.12790671,0.00017999,2]
[400337560,1767389431560,-500.0,0.00017999,2]
[400337561,1767389431570,-500.0,0.00017999,2]
[400337562,1767389431579,-500.0,0.00017999,2]
[400337563,1767389431589,-500.0,0.00017999,2]
[400337564,1767389431598,-500.0,0.00017999,2]
[400337565,1767389431608,-500.0,0.00017999,2]
[400337566,1767389431619,-500.0,0.00017999,2]
[400337567,1767389431630,-500.0,0.00017999,2]
[400337568,1767389431639,-500.0,0.00017999,2]
[400337569,1767389431648,-500.0,0.00017999,2]
[400337570,1767389431660,-500.0,0.00017999,2]
[400337571,1767389431669,-500.0,0.00017999,2]
[400337572,1767389431679,-500.0,0.00017999,2]
[400337573,1767389431690,-500.0,0.00017999,2]
[400337574,1767389431699,-500.0,0.00017999,2]
[400337575,1767389431709,-500.0,0.00017999,2]
[400337576,1767389431718,-500.0,0.00017999,2]
[400337577,1767389431728,-500.0,0.00017999,2]
[400337578,1767389431737,-500.0,0.00017999,2]
[400337579,1767389431747,-500.0,0.00017999,2]
[400337580,1767389431757,-500.0,0.00017999,2]
[400337581,1767389431767,-500.0,0.00017999,2]
[400337582,1767389431777,-21.87989057,0.00017999,2]
[400337585,1767389431789,-478.12010943,0.00017999,2]
[400337587,1767389431799,-500.0,0.00017999,2]
[400337589,1767389431809,-500.0,0.00017999,2]
[400337591,1767389431818,-500.0,0.00017999,2]
[400337593,1767389431827,-500.0,0.00017999,2]
[400337595,1767389431837,-500.0,0.00017999,2]
[400337597,1767389431846,-500.0,0.00017999,2]
[400337598,1767389431855,-500.0,0.00017999,2]
[400337601,1767389431865,-500.0,0.00017999,2]
[400337603,1767389431874,-500.0,0.00017999,2]
[400337606,1767389431884,-500.0,0.00017999,2]
[400337637,1767389431893,-500.0,0.00017999,2]
[400337640,1767389432153,-500.0,0.00017999,2]
[400337642,1767389432162,-500.0,0.00017999,2]
[400337644,1767389432172,-500.0,0.00017999,2]
[400337646,1767389432181,-500.0,0.00017999,2]
[400337648,1767389432190,-500.0,0.00017999,2]
[400337650,1767389432199,-500.0,0.00017999,2]
[400337652,1767389432209,-500.0,0.00017999,2]
[400337654,1767389432218,-500.0,0.00017999,2]
[400337656,1767389432227,-500.0,0.00017999,2]
[400337658,1767389432236,-500.0,0.00017999,2]
[400337660,1767389432245,-500.0,0.00017999,2]
[400337662,1767389432254,-500.0,0.00017999,2]
[400337664,1767389432263,-500.0,0.00017999,2]
[400337666,1767389432272,-500.0,0.00017999,2]
[400337668,1767389432281,-500.0,0.00017999,2]
[400337670,1767389432290,-500.0,0.00017999,2]
[400337672,1767389432299,-605.0,0.00017999,2]
[400337674,1767389432311,-500.0,0.00017999,2]
[400337676,1767389432320,-500.0,0.00017999,2]
[400337678,1767389432329,-500.0,0.00017999,2]
[400337680,1767389432339,-500.0,0.00017999,2]
[400337682,1767389432348,-500.0,0.00017999,2]
[400337684,1767389432357,-500.0,0.00017999,2]
[400337686,1767389432367,-500.0,0.00017999,2]
[400337688,1767389432378,-500.0,0.00017999,2]
[400337690,1767389432387,-500.0,0.00017999,2]
[400337692,1767389432396,-500.0,0.00017999,2]
[400337694,1767389432405,-500.0,0.00017999,2]
[400337696,1767389432414,-500.0,0.00017999,2]
[400337698,1767389432423,-500.0,0.00017999,2]
[400337700,1767389432433,-500.0,0.00017999,2]
[400337702,1767389432442,-500.0,0.00017999,2]
[400337704,1767389432451,-500.0,0.00017999,2]
[400337706,1767389432460,-500.0,0.00017999,2]
[400337708,1767389432469,-500.0,0.00017999,2]
[400337710,1767389432478,-500.0,0.00017999,2]
[400337712,1767389432488,-500.0,0.00017999,2]
[400337714,1767389432498,-460.5,0.00017999,2]
[400337716,1767389432507,-500.0,0.00017999,2]
[400337718,1767389432516,-157.99246346,0.00017999,2]
[400337720,1767389432525,-211.20448112,0.00017999,2]
[400337722,1767389432534,-190.91840058,0.00017999,2]
[400337724,1767389432544,-288.79551888,0.00017999,2]
[400337726,1767389432553,-250.0,0.00018,2]
[400337728,1767389432563,-909202.71390347,0.00018,2]
[400337730,1767389432578,-11961.49658105,0.00018,2]
[400337733,1767389432588,-1254.41808677,0.00018,2]
[400337735,1767389432599,-10950.37463114,0.00018,2]
[400337737,1767389432610,-9412.5,0.00018,2]
[400337739,1767389432625,-328.4750411,0.00018,2]
[400337741,1767389432636,-812.75505295,0.00018,2]
[400337800,1767389437649,-2955.98875919,0.00018,2]
[400337801,1767389437667,-417.89133502,0.00018,2]
[400337802,1767389437682,-1043.35,0.00018,2]
[400337803,1767389437765,-2260.13952846,0.00018,2]
[400337804,1767389437776,-576.55739814,0.00018,2]
[400337805,1767389437788,-2041.02769881,0.00018,2]
[400337806,1767389437821,-1593.76540147,0.00018,2]
[400337972,1767389439669,-60946.93440316,0.00018,2]
[400337974,1767389439681,-435.88463301,0.00018,2]
[400337976,1767389439693,-354.53810429,0.00018,2]
[400337980,1767389440511,-1.7e-07,0.00018,2]
[400337981,1767389440643,-298.51436949,0.00018,2]
[400337982,1767389440655,-1875778.76844216,0.00018,2]
[400337983,1767389440667,-90138.42393929,0.00018,2]
[400337984,1767389440679,-66270.30777562,0.00018,2]
[400337985,1767389440690,-85979.71959315,0.00018,2]
[400337986,1767389440707,-17845.8268315,0.00018,2]
[400337987,1767389440718,-307.46558972,0.00018,2]
[400337988,1767389440730,-266.5328003,0.00018,2]
[400337989,1767389440742,-256.76815562,0.00018,2]
[400337990,1767389440756,-3689.52,0.00018,2]
[400337991,1767389440767,-1518.12334425,0.00018,2]
[400337992,1767389440779,-954.72283817,0.00018,2]
[400337993,1767389440789,-914.84419443,0.00018,2]
[400337994,1767389440801,-6035.95388972,0.00018,2]
[400337995,1767389440812,-265.96,0.00018,2]
[400337996,1767389440823,-1003.32959622,0.00018,2]
[400337997,1767389440834,-7028.84508125,0.00018,2]
[400337998,1767389440845,-557745.29942266,0.00018,2]
[400337999,1767389440854,-616.90839172,0.00018,2]
[400338000,1767389440863,-3640.1721883,0.00018361,2]
[400338001,1767389440872,-251.39531589,0.00018523,2]
[400338002,1767389440881,-280.0,0.00019078,2]
[400338003,1767389440890,-150.0,0.00019178,2]
[400338004,1767389440899,-420.0,0.00019638,2]
[400338005,1767389440908,-200.0,0.00019726,2]
[400338006,1767389440918,-618.03155836,0.00019726,2]
[400338007,1767389440927,-1680.0,0.00019734,2]
[400338008,1767389440936,-250.0,0.00019799,2]
[400338009,1767389440945,-150.0,0.0002,20]
[400338010,1767389440956,-9449.19883324,0.00020233,2]
[400338011,1767389440966,-824.3847667,0.00020249,2]
[400338012,1767389440975,-1061.0947942,0.00020279,2]
[400338013,1767389440985,-18759.17532803,0.00020287,2]
[400338014,1767389440994,-812.2322033,0.00020686,2]
[400338015,1767389441003,-183.945105,0.00020757,2]
[400338016,1767389441013,-236.7622513,0.00020787,2]
[400338017,1767389441022,-181.2335016,0.00021205,2]
[400338018,1767389441032,-296.0,0.00021427,2]
[400338019,1767389441041,-2351.0,0.00021638,2]
[400338020,1767389441051,-854.85371951,0.00022068,2]
[400338021,1767389441061,-867.3,0.000221,7]
[400338022,1767389441070,-9449.19883324,0.00022567,2]
[400338023,1767389441080,-18759.17532803,0.00022673,2]
[400338024,1767389441091,-2231.0,0.00023726,2]
[400338025,1767389441102,-250.0,0.00023783,2]
[400338026,1767389441112,-175.44,0.00024599,2]
[400338027,1767389441121,-9449.19883324,0.000249,2]
[400338028,1767389441131,-1109.2215266,0.00025,2]
[400338029,1767389441140,-206.65908382,0.00025,2]
[400338030,1767389441151,-1777.42208836,0.00025,2]
[400338031,1767389441161,-14756.51956876,0.00025,2]
[400338032,1767389441171,-368.1311572,0.00025,2]
[400338033,1767389441180,-360.0,0.00025,2]
[400338034,1767389441190,-608.40867796,0.00025,2]
[400338035,1767389441200,-3031.75609184,0.00025,2]
[400338036,1767389441210,-1060.08606139,0.00025,2]
[400338037,1767389441219,-166.61332554,0.00025,2]
[400338038,1767389441228,-18759.17532803,0.0002506,2]
[400338039,1767389441237,-213.398,0.00025299,2]
[400338040,1767389441247,-1003.91059731,0.00025916,2]
[400338041,1767389441257,-854.85371951,0.00026235,2]
[400338042,1767389441266,-9449.19883324,0.00027233,2]
[400338043,1767389441276,-18759.17532803,0.00027446,2]
[400338044,1767389441286,-1000.0,0.00027591,2]
[400338045,1767389441295,-1794.62,0.00027754,2]
[400338046,1767389441304,-500.0,0.00027993,2]
[400338047,1767389441313,-500.0,0.00027993,2]
[400338048,1767389441323,-199.32717415,0.00027993,2]
[400338049,1767389441339,-500.0,0.00027993,2]
[400338050,1767389441351,-500.0,0.00027993,2]
[400338051,1767389441360,-150.0,0.00027993,2]
[400338052,1767389441370,-500.0,0.00027993,2]
[400338053,1767389441380,-150.0,0.00027994,2]
[400338054,1767389441390,-150.0,0.00027994,2]
[400338055,1767389441400,-500.0,0.00027994,2]
[400338056,1767389441409,-254.49344309,0.00027994,2]
[400338057,1767389441419,-500.0,0.00027994,2]
[400338058,1767389441428,-502.0,0.00027994,2]
[400338059,1767389441438,-196.80252033,0.00027994,2]
[400338060,1767389441447,-150.0,0.00027994,2]
[400338061,1767389441456,-11930.903737,0.00028,60]
[400338062,1767389441466,-500.0,0.0002813,2]
[400338063,1767389441475,-500.0,0.0002813,2]
[400338064,1767389441485,-500.0,0.0002813,2]
[400338065,1767389441494,-500.0,0.0002813,2]
[400338066,1767389441503,-500.0,0.0002813,2]
[400338067,1767389441512,-150.0,0.00028131,2]
[400338068,1767389441522,-500.0,0.00028131,2]
[400338069,1767389441531,-500.0,0.00028131,2]
[400338070,1767389441540,-502.0,0.00028131,2]
[400338071,1767389441550,-151.0,0.00028252,2]
[400338072,1767389441560,-151.0,0.00028252,2]
[400338073,1767389441570,-151.0,0.00028252,2]
[400338074,1767389441579,-151.0,0.00028252,2]
[400338075,1767389441589,-151.0,0.00028252,2]
[400338076,1767389441598,-151.0,0.00028252,2]
[400338077,1767389441608,-151.0,0.00028252,2]
[400338078,1767389441618,-151.0,0.00028252,2]
[400338079,1767389441631,-151.0,0.00028252,2]
[400338080,1767389441641,-151.0,0.00028252,2]
[400338081,1767389441651,-151.0,0.00028252,2]
[400338082,1767389441662,-151.0,0.00028252,2]
[400338083,1767389441672,-151.0,0.00028252,2]
[400338084,1767389441682,-151.0,0.00028252,2]
[400338085,1767389441692,-151.0,0.00028252,2]
[400338086,1767389441704,-151.0,0.00028252,2]
[400338087,1767389441713,-151.0,0.00028252,2]
[400338088,1767389441726,-151.0,0.00028252,2]
[400338089,1767389441735,-236.7016539,0.00028252,2]
[400338090,1767389441745,-300.0,0.00028258,10]
[400338091,1767389441755,-1879.093,0.00028266,19]
[400338092,1767389441764,-500.0,0.00028267,2]
[400338093,1767389441774,-500.0,0.00028267,2]
[400338094,1767389441784,-500.0,0.00028267,2]
[400338095,1767389441794,-500.0,0.00028267,2]
[400338096,1767389441805,-500.0,0.00028267,2]
[400338097,1767389441815,-200.0,0.00028268,2]
[400338098,1767389441826,-215.65062607,0.00028268,2]
[400338099,1767389441835,-500.0,0.00028268,2]
[400338100,1767389441844,-502.0,0.00028268,2]
[400338101,1767389441854,-1055.65988892,0.00028268,15]
[400338102,1767389441863,-158.18496941,0.00028268,2]
[400338103,1767389441872,-1000.0,0.00028269,2]
[400338104,1767389441881,-867.3,0.000283,7]
[400338105,1767389441890,-445.1656086,0.00028404,2]
[400338106,1767389441900,-500.0,0.00028404,2]
[400338107,1767389441909,-308.3819682,0.00028404,2]
[400338108,1767389441918,-500.0,0.00028404,2]
[400338109,1767389441927,-500.0,0.00028404,2]
[400338110,1767389441938,-500.0,0.00028405,2]
[400338111,1767389441947,-502.0,0.00028405,2]
[400338112,1767389442176,-500.0,0.00028541,2]
[400338113,1767389442194,-500.0,0.00028541,2]
[400338114,1767389442203,-500.0,0.00028541,2]
[400338115,1767389442215,-162.32975745,0.00028542,2]
[400338116,1767389442225,-502.0,0.00028542,2]
[400338117,1767389442236,-14223.15,0.00028633,2]
[400338118,1767389442246,-500.0,0.00028678,2]
[400338119,1767389442255,-500.0,0.00028678,2]
[400338120,1767389442266,-500.0,0.00028678,2]
[400338121,1767389442275,-502.0,0.00028679,2]
[400338122,1767389442284,-585.10310192,0.00028815,2]
[400338123,1767389442293,-500.0,0.00028815,2]
[400338124,1767389442302,-500.0,0.00028815,2]
[400338125,1767389442312,-502.0,0.00028816,2]
[400338126,1767389442321,-500.0,0.00028952,2]
[400338127,1767389442332,-500.0,0.00028952,2]
[400338128,1767389442342,-502.0,0.00028953,2]
[400338129,1767389442351,-500.0,0.00029089,2]
[400338130,1767389442361,-500.0,0.00029089,2]
[400338131,1767389442372,-502.0,0.0002909,2]
[400338132,1767389442381,-399.83079592,0.00029154,2]
[400338133,1767389442391,-500.0,0.00029226,2]
[400338134,1767389442400,-293.27926274,0.00029226,2]
[400338135,1767389442409,-502.0,0.00029227,2]
[400338136,1767389442418,-13435.22,0.00029273,2]
[400338137,1767389442427,-500.0,0.00029363,2]
[400338138,1767389442440,-502.0,0.00029364,2]
[400338139,1767389442450,-500.0,0.000295,2]
[400338140,1767389442459,-502.0,0.00029501,2]
[400338141,1767389442468,-9449.19883324,0.00029567,2]
[400338143,1767389442478,-168.0,0.00029591,2]
[400338144,1767389442488,-500.0,0.00029637,2]
[400338145,1767389442497,-502.0,0.00029638,2]
[400338146,1767389442506,-500.0,0.00029774,2]
[400338147,1767389442516,-502.0,0.00029775,2]
[400338148,1767389442526,-875.88,0.00029815,2]
[400338149,1767389442535,-18759.17532803,0.00029833,2]
[400338150,1767389442544,-168.0,0.00029866,2]
[400338151,1767389442554,-502.0,0.00029912,2]
[400338152,1767389442563,-151.87311279,0.00029959,2]
[400338153,1767389442572,-236.33877178,0.0002999,2]
[400338154,1767389442582,-276.0,0.0003,2]
[400338155,1767389442591,-4699.54911004,0.0003,2]
[400338156,1767389442600,-4135.62835594,0.0003,2]
[400338157,1767389442610,-1000.0,0.0003,3]
[400338158,1767389442621,-1810.19165207,0.0003,2]
[400338159,1767389442632,-439.48906919,0.0003,2]
[400338160,1767389442641,-162.37111533,0.0003,2]
[400338161,1767389442651,-151.86678879,0.0003,2]
[400338162,1767389442660,-502.0,0.00030049,2]
[400338163,1767389442671,-168.0,0.00030099,2]
[400338164,1767389442681,-1069.28909373,0.0003013,2]
[400338165,1767389442692,-3543.260445,0.0003013,2]
[400338166,1767389442701,-631.47646975,0.0003013,2]
[400338167,1767389442711,-5038.87649041,0.0003013,2]
[400338168,1767389442720,-200.8884006,0.0003013,2]
[400338169,1767389442729,-1219.50688971,0.0003013,2]
[400338170,1767389442738,-502.0,0.00030186,2]
[400338171,1767389442747,-867.3,0.000302,7]
[400338172,1767389442757,-502.0,0.00030323,2]
[400338173,1767389442766,-854.85371951,0.00030403,2]
[400338174,1767389442776,-502.0,0.0003046,2]
[400338175,1767389442785,-168.0,0.00030479,2]
[400338176,1767389442795,-168.0,0.00030479,2]
[400338177,1767389442804,-168.0,0.0003055,2]
[400338178,1767389442813,-502.0,0.00030597,2]
[400338179,1767389442823,-502.0,0.00030734,2]
[400338180,1767389442832,-168.0,0.00030751,2]
[400338181,1767389442841,-168.0,0.00030755,2]
[400338182,1767389442850,-2601.15838654,0.0003084,2]